[Event "Early-Titled-Tuesday-Blitz-September-05-2023"]
[Site "Chess.com"]
[Date "2023.09.05"]
[Round "3"]
[White "GaalZsoka"]
[Black "expii"]
[Result "1-0"]
[WhiteElo "2464"]
[BlackElo "2233"]
[TimeControl "180+1"]
[EndTime "8:27:41 PDT"]
[Termination "GaalZsoka won by resignation"]

1. Nf3 {[%clk 0:03:00.9]} 1... d5 {[%clk 0:02:57.7]} 2. g3 {[%clk 0:03:01]} 2...
c5 {[%clk 0:02:57.3]} 3. Bg2 {[%clk 0:03:01.5]} 3... Nf6 {[%clk 0:02:57.6]} 4.
O-O {[%clk 0:03:01.8]} 4... Nc6 {[%clk 0:02:57.3]} 5. b3 {[%clk 0:02:59.8]} 5...
e5 {[%clk 0:02:55.2]} 6. Bb2 {[%clk 0:02:58.8]} 6... d4 {[%clk 0:02:52.2]} 7. e3
{[%clk 0:02:55.4]} 7... Bg4 {[%clk 0:02:46.7]} 8. exd4 {[%clk 0:02:43]} 8... e4
{[%clk 0:02:33.2]} 9. Qe1 {[%clk 0:02:42.1]} 9... cxd4 {[%clk 0:02:28.1]} 10.
Ng5 {[%clk 0:02:38.6]} 10... e3 {[%clk 0:02:11.1]} 11. fxe3 {[%clk 0:02:31.4]}
11... dxe3 {[%clk 0:02:06.6]} 12. Qxe3+ {[%clk 0:02:30.1]} 12... Be7 {[%clk
0:02:06.5]} 13. h3 {[%clk 0:02:18.9]} 13... Bh5 {[%clk 0:02:01.7]} 14. Ne4
{[%clk 0:01:47.5]} 14... Nxe4 {[%clk 0:01:47]} 15. Bxe4 {[%clk 0:01:46.4]} 15...
O-O {[%clk 0:01:40.4]} 16. d4 {[%clk 0:01:34.1]} 16... Bf6 {[%clk 0:01:24.6]}
17. c3 {[%clk 0:01:22.7]} 17... Bg6 {[%clk 0:01:07.2]} 18. Bxg6 {[%clk
0:01:22.2]} 18... hxg6 {[%clk 0:01:04.1]} 19. Nd2 {[%clk 0:01:20.7]} 19... Qd7
{[%clk 0:00:50.3]} 20. Kh2 {[%clk 0:01:17.8]} 20... Rae8 {[%clk 0:00:46.9]} 21.
Qf3 {[%clk 0:01:10.3]} 21... Kh7 {[%clk 0:00:42.9]} 22. Rae1 {[%clk 0:01:09.6]}
22... Rxe1 {[%clk 0:00:39]} 23. Rxe1 {[%clk 0:01:10.5]} 23... Rh8 {[%clk
0:00:38.8]} 24. Ne4 {[%clk 0:01:08.5]} 24... Kg8 {[%clk 0:00:37.1]} 25. h4
{[%clk 0:00:48.8]} 25... Bxh4 {[%clk 0:00:27.1]} 26. gxh4 {[%clk 0:00:49]} 26...
Rxh4+ {[%clk 0:00:28]} 27. Kg2 {[%clk 0:00:49.5]} 27... Rg4+ {[%clk 0:00:21.2]}
28. Kf2 {[%clk 0:00:49.4]} 28... Rh4 {[%clk 0:00:19]} 29. Rh1 {[%clk 0:00:39]}
29... Rxh1 {[%clk 0:00:15.6]} 30. Qxh1 {[%clk 0:00:39.9]} 30... Qg4 {[%clk
0:00:13.2]} 31. Qf3 {[%clk 0:00:38.9]} 31... Qh4+ {[%clk 0:00:13.2]} 32. Ke3
{[%clk 0:00:37.6]} 32... Qe1+ {[%clk 0:00:12.8]} 33. Qe2 {[%clk 0:00:36.7]}
33... Qg1+ {[%clk 0:00:11.3]} 34. Kd3 {[%clk 0:00:37.1]} 34... Qb1+ {[%clk
0:00:10.4]} 35. Kc4 {[%clk 0:00:28.1]} 35... a6 {[%clk 0:00:05.9]} 36. Ba3
{[%clk 0:00:20.6]} 36... Qg1 {[%clk 0:00:02.4]} 37. b4 {[%clk 0:00:13.7]} 37...
Qb1 {[%clk 0:00:01.5]} 38. Kc5 {[%clk 0:00:09.3]} 38... b5 {[%clk 0:00:02.2]}
39. Kxc6 {[%clk 0:00:09.1]} 1-0

[Event "Early-Titled-Tuesday-Blitz-September-05-2023"]
[Site "Chess.com"]
[Date "2023.09.05"]
[Round "3"]
[White "AlexKhripachenko"]
[Black "Parhamov"]
[Result "0-1"]
[WhiteElo "2710"]
[BlackElo "2926"]
[TimeControl "180+1"]
[EndTime "8:27:44 PDT"]
[Termination "Parhamov won on time"]

1. e4 {[%clk 0:03:00.9]} 1... c5 {[%clk 0:02:59.7]} 2. Nf3 {[%clk 0:03:00.2]}
2... d6 {[%clk 0:02:58]} 3. d4 {[%clk 0:02:53.1]} 3... cxd4 {[%clk 0:02:58]} 4.
Nxd4 {[%clk 0:02:53.9]} 4... Nf6 {[%clk 0:02:58.6]} 5. Nc3 {[%clk 0:02:51.9]}
5... Nc6 {[%clk 0:02:58.9]} 6. Bg5 {[%clk 0:02:49.9]} 6... e6 {[%clk 0:02:57.7]}
7. Qd3 {[%clk 0:02:49]} 7... Bd7 {[%clk 0:02:56.8]} 8. O-O-O {[%clk 0:02:48.2]}
8... a6 {[%clk 0:02:52.3]} 9. f4 {[%clk 0:02:46.7]} 9... Be7 {[%clk 0:02:51.9]}
10. Be2 {[%clk 0:02:33.9]} 10... h6 {[%clk 0:02:51.6]} 11. Bh4 {[%clk
0:02:31.7]} 11... Qa5 {[%clk 0:02:50.2]} 12. Nb3 {[%clk 0:02:14]} 12... Qc7
{[%clk 0:02:49.4]} 13. Bxf6 {[%clk 0:02:10.3]} 13... gxf6 {[%clk 0:02:39.2]} 14.
Kb1 {[%clk 0:02:04.7]} 14... h5 {[%clk 0:02:30.9]} 15. Rhe1 {[%clk 0:01:57.2]}
15... O-O-O {[%clk 0:02:22.5]} 16. f5 {[%clk 0:01:49.9]} 16... Kb8 {[%clk
0:02:21.6]} 17. Qh3 {[%clk 0:01:39.6]} 17... h4 {[%clk 0:02:19.3]} 18. Bc4
{[%clk 0:01:32]} 18... Qc8 {[%clk 0:01:28.9]} 19. Na4 {[%clk 0:00:49.3]} 19...
d5 {[%clk 0:01:24.6]} 20. Nb6 {[%clk 0:00:34.4]} 20... Qc7 {[%clk 0:01:24.3]}
21. Nxd7+ {[%clk 0:00:33.8]} 21... Rxd7 {[%clk 0:01:24.1]} 22. fxe6 {[%clk
0:00:32.7]} 22... fxe6 {[%clk 0:01:24.1]} 23. exd5 {[%clk 0:00:32.9]} 23... Ne5
{[%clk 0:01:24.4]} 24. Bf1 {[%clk 0:00:30.8]} 24... exd5 {[%clk 0:01:23.3]} 25.
Nd4 {[%clk 0:00:29.8]} 25... Rc8 {[%clk 0:01:02.8]} 26. Qb3 {[%clk 0:00:25.8]}
26... Rd6 {[%clk 0:00:57.3]} 27. Qe3 {[%clk 0:00:07]} 27... Rb6 {[%clk
0:00:55.6]} 28. Ka1 {[%clk 0:00:05.7]} 28... Bc5 {[%clk 0:00:42.4]} 29. c3
{[%clk 0:00:05.7]} 29... Nc6 {[%clk 0:00:33.1]} 30. Ne6 {[%clk 0:00:02.6]} 30...
Bxe3 {[%clk 0:00:31.7]} 31. Nxc7 {[%clk 0:00:03.1]} 31... Rxc7 {[%clk
0:00:24.5]} 32. Rxe3 {[%clk 0:00:03.3]} 32... d4 {[%clk 0:00:25.1]} 33. Re8+
{[%clk 0:00:02.1]} 33... Ka7 {[%clk 0:00:24.8]} 34. c4 {[%clk 0:00:02.7]} 34...
Rd7 {[%clk 0:00:15.3]} 35. b3 {[%clk 0:00:02]} 35... Ne5 {[%clk 0:00:15.5]} 0-1

[Event "Early-Titled-Tuesday-Blitz-September-05-2023"]
[Site "Chess.com"]
[Date "2023.09.05"]
[Round "3"]
[White "Emp3rador"]
[Black "wqws"]
[Result "0-1"]
[WhiteElo "2467"]
[BlackElo "2656"]
[TimeControl "180+1"]
[EndTime "8:27:44 PDT"]
[Termination "wqws won by checkmate"]

1. e4 {[%clk 0:03:00.9]} 1... c5 {[%clk 0:02:58]} 2. Nf3 {[%clk 0:03:00.7]} 2...
d6 {[%clk 0:02:56.8]} 3. Bb5+ {[%clk 0:02:57]} 3... Nd7 {[%clk 0:02:56.5]} 4. d4
{[%clk 0:02:56.3]} 4... cxd4 {[%clk 0:02:56.7]} 5. Qxd4 {[%clk 0:02:57.2]} 5...
a6 {[%clk 0:02:56]} 6. Bxd7+ {[%clk 0:02:56.7]} 6... Bxd7 {[%clk 0:02:56.9]} 7.
Nc3 {[%clk 0:02:57]} 7... e5 {[%clk 0:02:56.9]} 8. Qd3 {[%clk 0:02:56.6]} 8...
Nf6 {[%clk 0:02:56.2]} 9. Bg5 {[%clk 0:02:56.4]} 9... Be6 {[%clk 0:02:54.7]} 10.
Nd2 {[%clk 0:02:54]} 10... Be7 {[%clk 0:02:54.5]} 11. Nc4 {[%clk 0:02:50.7]}
11... Rc8 {[%clk 0:02:51.7]} 12. Ne3 {[%clk 0:02:49.6]} 12... O-O {[%clk
0:02:43.4]} 13. O-O {[%clk 0:02:46.1]} 13... b5 {[%clk 0:02:29.9]} 14. a3 {[%clk
0:02:35.9]} 14... Bc4 {[%clk 0:02:16.8]} 15. Nxc4 {[%clk 0:02:34.3]} 15... bxc4
{[%clk 0:02:13.3]} 16. Qd2 {[%clk 0:02:27.2]} 16... Rb8 {[%clk 0:02:06.3]} 17.
Rab1 {[%clk 0:02:25.2]} 17... h6 {[%clk 0:01:27]} 18. Bxf6 {[%clk 0:02:24.4]}
18... Bxf6 {[%clk 0:01:27.9]} 19. Nd5 {[%clk 0:02:22.6]} 19... Bg5 {[%clk
0:01:24.9]} 20. Qe2 {[%clk 0:02:16.1]} 20... Rc8 {[%clk 0:01:23.7]} 21. b4
{[%clk 0:01:57.1]} 21... g6 {[%clk 0:01:08.6]} 22. a4 {[%clk 0:01:51.6]} 22...
f5 {[%clk 0:01:07.1]} 23. b5 {[%clk 0:01:51.2]} 23... f4 {[%clk 0:01:05]} 24.
Qg4 {[%clk 0:01:42.8]} 24... f3 {[%clk 0:01:01.8]} 25. g3 {[%clk 0:00:58.3]}
25... a5 {[%clk 0:00:58.1]} 26. h4 {[%clk 0:00:54]} 26... Bd2 {[%clk 0:00:51.5]}
27. Qxg6+ {[%clk 0:00:27.6]} 27... Kh8 {[%clk 0:00:51.4]} 28. c3 {[%clk
0:00:20.6]} 28... Qd7 {[%clk 0:00:32.7]} 29. Kh2 {[%clk 0:00:20.2]} 29... Rf7
{[%clk 0:00:28.3]} 30. Rbd1 {[%clk 0:00:18.3]} 30... Rg8 {[%clk 0:00:28.3]} 31.
Qh5 {[%clk 0:00:17.8]} 31... Bf4 {[%clk 0:00:26]} 32. Rg1 {[%clk 0:00:12.8]}
32... Rfg7 {[%clk 0:00:20.1]} 33. Qxf3 {[%clk 0:00:10.6]} 33... Qd8 {[%clk
0:00:17.7]} 34. b6 {[%clk 0:00:08.9]} 34... Qxh4+ {[%clk 0:00:17.7]} 35. Kg2
{[%clk 0:00:09.4]} 35... Rxg3+ {[%clk 0:00:17.7]} 36. fxg3 {[%clk 0:00:09.5]}
36... Rxg3+ {[%clk 0:00:18.1]} 37. Qxg3 {[%clk 0:00:09.9]} 37... Qxg3+ {[%clk
0:00:18.1]} 38. Kf1 {[%clk 0:00:10.5]} 38... Qf3+ {[%clk 0:00:17.7]} 39. Ke1
{[%clk 0:00:11.1]} 39... Qxe4+ {[%clk 0:00:17.8]} 40. Kf2 {[%clk 0:00:10.6]}
40... Bg5 {[%clk 0:00:14.6]} 41. b7 {[%clk 0:00:09]} 41... Bh4+ {[%clk 0:00:15]}
42. Kf1 {[%clk 0:00:08.7]} 42... Qf3# {[%clk 0:00:13.9]} 0-1

[Event "Early-Titled-Tuesday-Blitz-September-05-2023"]
[Site "Chess.com"]
[Date "2023.09.05"]
[Round "3"]
[White "bascheyaro"]
[Black "Vesper2018"]
[Result "1-0"]
[WhiteElo "2813"]
[BlackElo "2589"]
[TimeControl "180+1"]
[EndTime "8:27:45 PDT"]
[Termination "bascheyaro won on time"]

1. d4 {[%clk 0:02:58.3]} 1... Nf6 {[%clk 0:02:59.6]} 2. Nf3 {[%clk 0:02:58.3]}
2... g6 {[%clk 0:02:59.1]} 3. Bf4 {[%clk 0:02:58.5]} 3... Bg7 {[%clk 0:02:56.2]}
4. e3 {[%clk 0:02:58.9]} 4... O-O {[%clk 0:02:55.8]} 5. h3 {[%clk 0:02:59]} 5...
d6 {[%clk 0:02:53.2]} 6. Bc4 {[%clk 0:02:59]} 6... Nc6 {[%clk 0:02:43.2]} 7. O-O
{[%clk 0:02:58.6]} 7... Nd7 {[%clk 0:02:41.3]} 8. Nc3 {[%clk 0:02:57.6]} 8... h6
{[%clk 0:02:30.7]} 9. Re1 {[%clk 0:02:54.7]} 9... e5 {[%clk 0:02:30.5]} 10. dxe5
{[%clk 0:02:53.4]} 10... Ndxe5 {[%clk 0:02:30.3]} 11. Nxe5 {[%clk 0:02:51.8]}
11... Nxe5 {[%clk 0:02:28.4]} 12. Bb3 {[%clk 0:02:49.1]} 12... c6 {[%clk
0:02:15]} 13. e4 {[%clk 0:02:33.8]} 13... Be6 {[%clk 0:02:10.9]} 14. Qd2 {[%clk
0:02:32.8]} 14... g5 {[%clk 0:02:09.1]} 15. Bg3 {[%clk 0:02:31.9]} 15... Qe7
{[%clk 0:02:03.1]} 16. f4 {[%clk 0:02:28.1]} 16... gxf4 {[%clk 0:02:01.1]} 17.
Bxf4 {[%clk 0:02:28.5]} 17... Qh4 {[%clk 0:01:58.7]} 18. Qf2 {[%clk 0:02:06.7]}
18... Qxf2+ {[%clk 0:01:54.4]} 19. Kxf2 {[%clk 0:02:07.6]} 19... Bxb3 {[%clk
0:01:49.8]} 20. axb3 {[%clk 0:02:07.7]} 20... f5 {[%clk 0:01:50.2]} 21. Kg3
{[%clk 0:02:07]} 21... Rad8 {[%clk 0:01:28.8]} 22. Rxa7 {[%clk 0:02:03.5]} 22...
Ng6 {[%clk 0:01:21.6]} 23. exf5 {[%clk 0:01:13.5]} 23... Rxf5 {[%clk 0:01:17.1]}
24. Be3 {[%clk 0:01:11.9]} 24... Be5+ {[%clk 0:01:14.3]} 25. Kg4 {[%clk
0:01:12.3]} 25... Rdf8 {[%clk 0:01:14.4]} 26. Bxh6 {[%clk 0:01:11.4]} 26... R8f7
{[%clk 0:01:11.2]} 27. Rxb7 {[%clk 0:00:57.6]} 27... Rf2 {[%clk 0:01:02.3]} 28.
Rxf7 {[%clk 0:00:56.8]} 28... Kxf7 {[%clk 0:01:02.5]} 29. Re2 {[%clk 0:00:54]}
29... Rf1 {[%clk 0:00:49.2]} 30. Ne4 {[%clk 0:00:53.8]} 30... d5 {[%clk
0:00:43.2]} 31. Nd2 {[%clk 0:00:52.9]} 31... Rd1 {[%clk 0:00:33.8]} 32. c3
{[%clk 0:00:48.9]} 32... Bf6 {[%clk 0:00:30.5]} 33. Nf3 {[%clk 0:00:48.1]} 33...
c5 {[%clk 0:00:30.6]} 34. Rd2 {[%clk 0:00:46.6]} 34... Rb1 {[%clk 0:00:25.3]}
35. Rxd5 {[%clk 0:00:44.7]} 35... Rxb2 {[%clk 0:00:25.7]} 36. Rxc5 {[%clk
0:00:44.1]} 36... Rxb3 {[%clk 0:00:26.1]} 37. Bd2 {[%clk 0:00:44.2]} 37... Rb2
{[%clk 0:00:25]} 38. Rc7+ {[%clk 0:00:41.2]} 38... Ke6 {[%clk 0:00:24.2]} 39.
Rc6+ {[%clk 0:00:41.4]} 39... Kf7 {[%clk 0:00:24.1]} 40. Bg5 {[%clk 0:00:40.6]}
40... Rxg2+ {[%clk 0:00:22.4]} 41. Kh5 {[%clk 0:00:37.2]} 41... Rxg5+ {[%clk
0:00:03.5]} 42. Nxg5+ {[%clk 0:00:37.2]} 42... Kg7 {[%clk 0:00:01.5]} 43. Ne4
{[%clk 0:00:25.2]} 1-0

[Event "Early-Titled-Tuesday-Blitz-September-05-2023"]
[Site "Chess.com"]
[Date "2023.09.05"]
[Round "3"]
[White "Aygehovit1992"]
[Black "HajiyevKanan"]
[Result "1-0"]
[WhiteElo "2705"]
[BlackElo "2470"]
[TimeControl "180+1"]
[EndTime "8:27:45 PDT"]
[Termination "Aygehovit1992 won by checkmate"]

1. e4 {[%clk 0:03:00.9]} 1... c6 {[%clk 0:02:59.4]} 2. Nc3 {[%clk 0:03:00.4]}
2... d5 {[%clk 0:03:00.3]} 3. Nf3 {[%clk 0:03:01]} 3... a6 {[%clk 0:03:00.6]} 4.
d4 {[%clk 0:02:47.7]} 4... Bg4 {[%clk 0:02:59.8]} 5. h3 {[%clk 0:02:46.3]} 5...
Bh5 {[%clk 0:03:00.2]} 6. exd5 {[%clk 0:02:39.7]} 6... cxd5 {[%clk 0:03:01.1]}
7. g4 {[%clk 0:02:40]} 7... Bg6 {[%clk 0:03:01.7]} 8. Ne5 {[%clk 0:02:40.7]}
8... Nc6 {[%clk 0:02:58.6]} 9. Bg2 {[%clk 0:02:17]} 9... Nxe5 {[%clk 0:02:57.4]}
10. dxe5 {[%clk 0:02:16.7]} 10... e6 {[%clk 0:02:58.3]} 11. Be3 {[%clk
0:02:13.3]} 11... Bb4 {[%clk 0:02:56.7]} 12. a3 {[%clk 0:02:10.6]} 12... Ba5
{[%clk 0:02:51.7]} 13. f4 {[%clk 0:01:47.7]} 13... Rc8 {[%clk 0:02:39.8]} 14.
O-O {[%clk 0:01:47.2]} 14... Ne7 {[%clk 0:02:34.1]} 15. f5 {[%clk 0:01:47.3]}
15... exf5 {[%clk 0:02:31.9]} 16. Nxd5 {[%clk 0:01:43.5]} 16... fxg4 {[%clk
0:02:09.3]} 17. Qxg4 {[%clk 0:01:32.4]} 17... Rxc2 {[%clk 0:01:55.9]} 18. Rad1
{[%clk 0:01:28]} 18... Nxd5 {[%clk 0:01:41]} 19. Bxd5 {[%clk 0:01:17.1]} 19...
Qe7 {[%clk 0:01:25.9]} 20. Qa4+ {[%clk 0:00:46.2]} 20... b5 {[%clk 0:01:07.6]}
21. Qxa5 {[%clk 0:00:46.3]} 21... O-O {[%clk 0:01:04.7]} 22. Qe1 {[%clk
0:00:31.7]} 22... Qxe5 {[%clk 0:01:02]} 23. Bf4 {[%clk 0:00:28.6]} 23... Qxb2
{[%clk 0:00:57.6]} 24. Be5 {[%clk 0:00:23.1]} 24... Qxa3 {[%clk 0:00:48.2]} 25.
Qg3 {[%clk 0:00:02.7]} 25... Qc5+ {[%clk 0:00:48.2]} 26. Kh1 {[%clk 0:00:03.1]}
26... a5 {[%clk 0:00:42.4]} 27. Bd6 {[%clk 0:00:03.3]} 27... Qc8 {[%clk
0:00:26.1]} 28. Bxf8 {[%clk 0:00:03.2]} 28... Qxf8 {[%clk 0:00:23.7]} 29. Bg2
{[%clk 0:00:02.7]} 29... a4 {[%clk 0:00:20.9]} 30. Rf2 {[%clk 0:00:03]} 30...
Rc8 {[%clk 0:00:17.4]} 31. Rfd2 {[%clk 0:00:02.5]} 31... a3 {[%clk 0:00:16.1]}
32. Qd3 {[%clk 0:00:02.1]} 32... b4 {[%clk 0:00:16.6]} 33. Qe3 {[%clk
0:00:02.3]} 33... Rb8 {[%clk 0:00:15.5]} 34. Rd6 {[%clk 0:00:02.3]} 34... b3
{[%clk 0:00:14.8]} 35. Qd2 {[%clk 0:00:02.7]} 35... b2 {[%clk 0:00:14.9]} 36.
Rd8 {[%clk 0:00:03]} 36... b1=Q {[%clk 0:00:13.6]} 37. Rxf8+ {[%clk 0:00:02.9]}
37... Kxf8 {[%clk 0:00:14.1]} 38. Rxb1 {[%clk 0:00:03]} 38... Rxb1+ {[%clk
0:00:14.8]} 39. Kh2 {[%clk 0:00:03.5]} 39... Rb8 {[%clk 0:00:14.5]} 40. Qd6+
{[%clk 0:00:03.8]} 40... Ke8 {[%clk 0:00:15.3]} 41. Qxb8+ {[%clk 0:00:04.5]}
41... Ke7 {[%clk 0:00:16.2]} 42. Qa7+ {[%clk 0:00:05]} 42... Ke6 {[%clk
0:00:16.7]} 43. Qxa3 {[%clk 0:00:05.9]} 43... Kf5 {[%clk 0:00:17.3]} 44. Kg3
{[%clk 0:00:06.6]} 44... Kf6 {[%clk 0:00:17.7]} 45. Qe3 {[%clk 0:00:07.1]} 45...
h6 {[%clk 0:00:17.7]} 46. Kf4 {[%clk 0:00:07.5]} 46... Bf5 {[%clk 0:00:18.3]}
47. Qe5+ {[%clk 0:00:07.8]} 47... Kg6 {[%clk 0:00:19.1]} 48. Qxf5# {[%clk
0:00:08.4]} 1-0

[Event "Early-Titled-Tuesday-Blitz-September-05-2023"]
[Site "Chess.com"]
[Date "2023.09.05"]
[Round "3"]
[White "ljm509"]
[Black "ozates"]
[Result "0-1"]
[WhiteElo "2312"]
[BlackElo "2565"]
[TimeControl "180+1"]
[EndTime "8:27:46 PDT"]
[Termination "ozates won on time"]

1. e4 {[%clk 0:03:00]} 1... c5 {[%clk 0:02:56.3]} 2. Nf3 {[%clk 0:02:59.7]} 2...
e6 {[%clk 0:02:56.2]} 3. d4 {[%clk 0:02:59.5]} 3... cxd4 {[%clk 0:02:57.1]} 4.
Nxd4 {[%clk 0:02:58.3]} 4... Nc6 {[%clk 0:02:56.2]} 5. Nc3 {[%clk 0:02:57.8]}
5... Nf6 {[%clk 0:02:56.6]} 6. Nxc6 {[%clk 0:02:57.2]} 6... bxc6 {[%clk
0:02:56.6]} 7. Bd3 {[%clk 0:02:57.5]} 7... d5 {[%clk 0:02:56.4]} 8. O-O {[%clk
0:02:57.5]} 8... Bc5 {[%clk 0:02:52.4]} 9. Re1 {[%clk 0:02:50.2]} 9... O-O
{[%clk 0:02:51.5]} 10. e5 {[%clk 0:02:35.5]} 10... Nd7 {[%clk 0:02:48.8]} 11.
Qh5 {[%clk 0:02:28.8]} 11... g6 {[%clk 0:02:48.8]} 12. Qh6 {[%clk 0:02:28.6]}
12... Re8 {[%clk 0:02:27.3]} 13. Bg5 {[%clk 0:02:27.4]} 13... Qb6 {[%clk
0:02:27]} 14. Na4 {[%clk 0:02:16.9]} 14... Qa5 {[%clk 0:02:17.4]} 15. Nxc5
{[%clk 0:02:10.7]} 15... Qxc5 {[%clk 0:02:18.3]} 16. Re3 {[%clk 0:01:41.6]}
16... Qf8 {[%clk 0:02:17.8]} 17. Qh4 {[%clk 0:01:40.5]} 17... Rb8 {[%clk
0:02:10.9]} 18. Rh3 {[%clk 0:01:35.8]} 18... h5 {[%clk 0:02:07.1]} 19. Qg3
{[%clk 0:01:25.9]} 19... Qg7 {[%clk 0:02:00.2]} 20. Bf6 {[%clk 0:01:23.9]} 20...
Qh6 {[%clk 0:01:52.1]} 21. Bg5 {[%clk 0:01:02.6]} 21... Qh7 {[%clk 0:01:46.8]}
22. b3 {[%clk 0:00:54.3]} 22... Rb4 {[%clk 0:01:41.8]} 23. f3 {[%clk 0:00:48.5]}
23... Qg7 {[%clk 0:01:36.2]} 24. c3 {[%clk 0:00:44.9]} 24... Nxe5 {[%clk
0:01:28.3]} 25. Bf1 {[%clk 0:00:28]} 25... Rb6 {[%clk 0:01:17.2]} 26. Re1 {[%clk
0:00:25]} 26... Nd7 {[%clk 0:01:10.8]} 27. f4 {[%clk 0:00:20.5]} 27... Ba6
{[%clk 0:01:08.4]} 28. c4 {[%clk 0:00:18]} 28... dxc4 {[%clk 0:01:00.4]} 29.
bxc4 {[%clk 0:00:17.6]} 29... Rb2 {[%clk 0:00:56.3]} 30. f5 {[%clk 0:00:16.2]}
30... Bxc4 {[%clk 0:00:24.3]} 31. f6 {[%clk 0:00:12.9]} 31... Nxf6 {[%clk
0:00:22.1]} 32. Bxc4 {[%clk 0:00:12.2]} 32... Ng4 {[%clk 0:00:20.6]} 33. Qf4
{[%clk 0:00:08.7]} 33... Rc2 {[%clk 0:00:14.6]} 34. Bb3 {[%clk 0:00:08.2]} 34...
Rc5 {[%clk 0:00:11.6]} 35. Rf3 {[%clk 0:00:07.9]} 35... Rf5 {[%clk 0:00:10.2]}
36. Qe3 {[%clk 0:00:07.3]} 36... Nxe3 {[%clk 0:00:08.9]} 0-1

[Event "Early-Titled-Tuesday-Blitz-September-05-2023"]
[Site "Chess.com"]
[Date "2023.09.05"]
[Round "3"]
[White "FormerProdigy"]
[Black "CSB7"]
[Result "1-0"]
[WhiteElo "2879"]
[BlackElo "2697"]
[TimeControl "180+1"]
[EndTime "8:27:47 PDT"]
[Termination "FormerProdigy won by resignation"]

1. d4 {[%clk 0:03:00.9]} 1... Nf6 {[%clk 0:02:58.6]} 2. c4 {[%clk 0:03:01.4]}
2... e6 {[%clk 0:02:57.6]} 3. Nc3 {[%clk 0:03:02]} 3... Bb4 {[%clk 0:02:56.1]}
4. e3 {[%clk 0:03:02.2]} 4... O-O {[%clk 0:02:53.4]} 5. Bd3 {[%clk 0:03:02.7]}
5... Re8 {[%clk 0:02:52.7]} 6. Nf3 {[%clk 0:02:53.9]} 6... Bxc3+ {[%clk
0:02:50.6]} 7. bxc3 {[%clk 0:02:54.8]} 7... d6 {[%clk 0:02:50.5]} 8. O-O {[%clk
0:02:52.3]} 8... e5 {[%clk 0:02:50.8]} 9. dxe5 {[%clk 0:02:49.6]} 9... dxe5
{[%clk 0:02:51.7]} 10. Nxe5 {[%clk 0:02:50]} 10... Qe7 {[%clk 0:02:52]} 11. Nf3
{[%clk 0:02:46.2]} 11... Bg4 {[%clk 0:02:52.5]} 12. h3 {[%clk 0:02:42.6]} 12...
Bxf3 {[%clk 0:02:50.5]} 13. Qxf3 {[%clk 0:02:43.5]} 13... Nc6 {[%clk 0:02:44.7]}
14. Qe2 {[%clk 0:02:19.4]} 14... Rad8 {[%clk 0:02:40.4]} 15. Bb2 {[%clk
0:02:15.8]} 15... Ne5 {[%clk 0:02:22.9]} 16. Bc2 {[%clk 0:02:08.5]} 16... Qc5
{[%clk 0:02:16.4]} 17. Bb3 {[%clk 0:02:08.9]} 17... Nd3 {[%clk 0:02:07.2]} 18.
Rad1 {[%clk 0:02:09.1]} 18... Nxb2 {[%clk 0:02:05.6]} 19. Qxb2 {[%clk 0:02:10]}
19... b6 {[%clk 0:01:50]} 20. Rd4 {[%clk 0:02:06.2]} 20... Qe7 {[%clk
0:01:42.6]} 21. Ba4 {[%clk 0:01:49.1]} 21... c5 {[%clk 0:01:30.9]} 22. Rdd1
{[%clk 0:01:40.1]} 22... Rxd1 {[%clk 0:01:26.6]} 23. Rxd1 {[%clk 0:01:41]} 23...
Rd8 {[%clk 0:01:26.9]} 24. Qb1 {[%clk 0:01:14.8]} 24... g6 {[%clk 0:01:15.4]}
25. Bc6 {[%clk 0:01:12.9]} 25... Kg7 {[%clk 0:01:01.8]} 26. Rxd8 {[%clk
0:00:58.3]} 26... Qxd8 {[%clk 0:01:02.7]} 27. Bd5 {[%clk 0:00:58.9]} 27... Qe7
{[%clk 0:00:39.6]} 28. Qd3 {[%clk 0:00:56.6]} 28... h5 {[%clk 0:00:36.9]} 29. f4
{[%clk 0:00:43.2]} 29... Ne8 {[%clk 0:00:27.6]} 30. g3 {[%clk 0:00:36.2]} 30...
f5 {[%clk 0:00:14.9]} 31. e4 {[%clk 0:00:30.6]} 31... fxe4 {[%clk 0:00:15.8]}
32. Qxe4 {[%clk 0:00:31.2]} 32... Qd8 {[%clk 0:00:15.4]} 33. Qe5+ {[%clk
0:00:26.2]} 33... Nf6 {[%clk 0:00:15.8]} 34. g4 {[%clk 0:00:23.1]} 34... hxg4
{[%clk 0:00:15.6]} 35. hxg4 {[%clk 0:00:24]} 35... Kh7 {[%clk 0:00:15.4]} 36. g5
{[%clk 0:00:24.2]} 36... Nxd5 {[%clk 0:00:04.1]} 37. cxd5 {[%clk 0:00:25.1]}
37... Qd7 {[%clk 0:00:02.8]} 38. Kf2 {[%clk 0:00:18.8]} 38... Qh3 {[%clk
0:00:02.2]} 39. Qe7+ {[%clk 0:00:17]} 39... Kh8 {[%clk 0:00:02.6]} 40. Qf8+
{[%clk 0:00:15.9]} 40... Kh7 {[%clk 0:00:02.6]} 41. Qf7+ {[%clk 0:00:16.2]}
41... Kh8 {[%clk 0:00:03]} 42. Qf8+ {[%clk 0:00:15.5]} 42... Kh7 {[%clk
0:00:03]} 43. Qh6+ {[%clk 0:00:16.4]} 43... Qxh6 {[%clk 0:00:02.4]} 44. gxh6
{[%clk 0:00:17.3]} 1-0